bitfinex/quotes_BTCUSD_20251201
["timestamp","ask_amount","ask_price","bid_price","bid_amount"]
[1764611523193,0.23465365,85232.0,85231.0,0.00011607]
[1764611523750,0.01173061,85247.0,85231.0,0.00011607]
[1764611523957,0.01172993,85252.0,85238.0,0.01173185]
[1764611524182,0.23461555,85246.0,85235.0,0.01173226]
[1764611524383,0.23461257,85247.0,85234.0,0.0117324]
[1764611524589,0.23461606,85246.0,85235.0,0.01173226]
[1764611524809,0.01173171,85239.0,85231.0,0.02476812]
[1764611525016,0.01173158,85240.0,85231.0,0.02476812]
[1764611525211,0.01173199,85237.0,85231.0,0.00011607]
[1764611525377,0.01173226,85235.0,85231.0,0.00011607]
[1764611525574,0.23465099,85233.0,85231.0,0.00011607]
[1764611525803,0.23465365,85232.0,85231.0,0.00011607]
[1764611526222,0.23465365,85232.0,85231.0,0.00138341]
[1764611526388,0.67506106,85232.0,85231.0,0.00138341]
[1764611528780,0.69366106,85232.0,85231.0,0.00138341]
[1764611530564,0.71893498,85232.0,85231.0,0.00138341]
[1764611530764,2.71893498,85232.0,85231.0,0.00138341]
[1764611531738,2.71893498,85232.0,85231.0,0.00724941]
[1764611532330,0.71893498,85232.0,85231.0,0.00724941]
[1764611532536,0.37733498,85232.0,85231.0,0.00724941]
[1764611532734,0.23465365,85232.0,85231.0,0.00724941]
[1764611532935,0.55765365,85232.0,85231.0,0.00724941]
[1764611536926,0.323,85232.0,85231.0,0.00724941]
[1764611537082,0.323,85232.0,85231.0,0.24190581]
[1764611537267,0.323,85232.0,85231.0,0.29308219]
[1764611538372,0.323,85232.0,85231.0,0.00724941]
[1764611538373,0.55765365,85232.0,85231.0,0.00724941]
[1764611538573,0.323,85232.0,85231.0,0.00724941]
[1764611539219,0.04700474,85247.0,85233.0,0.01173254]
[1764611539420,0.39355161,85256.0,85231.0,0.00724941]
[1764611539421,0.0186,85254.0,85239.0,0.01173171]
[1764611539577,0.0186,85254.0,85238.0,0.01173185]
[1764611539578,0.33473075,85246.0,85238.0,0.01173185]
[1764611539915,0.2463447,85247.0,85238.0,0.01173185]
[1764611540119,0.01173048,85248.0,85238.0,0.24636875]
[1764611540329,0.01173061,85247.0,85239.0,0.24636465]
[1764611540706,0.01173061,85247.0,85240.0,0.01173158]
[1764611540883,0.33473075,85246.0,85236.0,0.01173213]
[1764611541084,0.01173089,85245.0,85238.0,0.01173185]
[1764611541561,0.56934713,85246.0,85239.0,0.01173171]
[1764611541748,0.323,85246.0,85240.0,0.07508485]
[1764611541903,0.01173103,85244.0,85240.0,0.07508485]
[1764611542246,0.01173103,85244.0,85235.0,0.01173226]
[1764611542247,0.323,85242.0,85235.0,0.01173226]
[1764611542388,0.323,85242.0,85238.0,0.2463681]
[1764611542587,0.323,85242.0,85239.0,0.24636505]
[1764611543042,0.323,85242.0,85237.0,0.24637187]
[1764611543223,0.01173089,85245.0,85238.0,0.01173185]
[1764611543548,0.323,85246.0,85241.0,0.01173144]
[1764611543751,0.33473116,85243.0,85239.0,0.001]
[1764611543947,0.33473103,85244.0,85237.0,0.01173199]
[1764611544379,0.323,85244.0,85237.0,0.24637031]
[1764611544515,0.323,85244.0,85240.0,0.01173158]
[1764611545008,0.01173089,85245.0,85237.0,0.24637123]
[1764611545195,0.01173089,85245.0,85238.0,0.01173185]
[1764611545398,0.323,85246.0,85244.0,0.00084477]
[1764611545596,0.323,85246.0,85239.0,0.32037765]
[1764611545798,0.323,85246.0,85245.0,0.00081227]
[1764611546018,0.323,85248.0,85245.0,0.00081227]
[1764611546371,0.01173061,85247.0,85240.0,0.24636114]
[1764611546556,0.323,85246.0,85241.0,0.08131101]
[1764611547347,0.323,85246.0,85240.0,0.01273158]
[1764611547348,0.323,85246.0,85244.0,0.23461821]
[1764611547555,0.323,85246.0,85240.0,0.01173158]
[1764611547718,0.01172951,85255.0,85246.0,0.01173075]
[1764611547920,0.0186,85263.0,85255.0,0.01172951]
[1764611548122,0.011728,85266.0,85256.0,0.01172937]
[1764611548325,0.33472855,85262.0,85257.0,0.02697792]
[1764611548621,0.01172855,85262.0,85257.0,0.02697792]
[1764611548822,0.25314937,85270.0,85231.0,0.005866]
[1764611548823,0.2345906,85255.0,85244.0,0.25322055]
[1764611548987,0.23459311,85254.0,85245.0,0.24634844]
[1764611549192,0.23459801,85253.0,85245.0,0.24634755]
[1764611549520,0.23459801,85253.0,85245.0,0.24646362]
[1764611549923,0.23459801,85253.0,85247.0,0.01173061]
[1764611550123,0.23459801,85253.0,85246.0,0.2463446]
[1764611550324,0.2463278,85253.0,85245.0,0.24646362]
[1764611550488,0.0117302,85250.0,85245.0,0.00111607]
[1764611550696,0.23461511,85246.0,85245.0,0.00111607]
[1764611551090,0.55761511,85246.0,85245.0,0.00011607]
[1764611554173,0.323,85246.0,85245.0,0.00011607]
[1764611554404,0.24633744,85249.0,85245.0,0.00011607]
[1764611554611,0.323,85249.0,85246.0,0.02464753]
[1764611554793,0.33473034,85249.0,85246.0,0.02464753]
[1764611554995,0.2346104,85248.0,85246.0,0.02464753]
[1764611555355,0.11740741,85271.0,85251.0,0.01173006]
[1764611555562,0.11740741,85271.0,85257.0,0.01172924]
[1764611555563,0.24628861,85266.0,85257.0,0.01172924]
[1764611555924,0.23456558,85264.0,85255.0,0.23459027]
[1764611556092,0.56929681,85263.0,85255.0,0.24631978]
[1764611556270,0.323,85263.0,85256.0,0.23458717]
[1764611556433,0.323,85263.0,85256.0,0.2220485]
[1764611556650,0.01172759,85269.0,85260.0,0.01172882]
[1764611556882,0.01172731,85271.0,85261.0,0.24630165]
[1764611557088,0.01172772,85268.0,85261.0,0.01172869]
[1764611557288,0.01172772,85268.0,85260.0,0.01172882]
[1764611557289,0.011728,85266.0,85260.0,0.01172882]
[1764611557507,0.01172814,85265.0,85259.0,0.01172896]
[1764611557737,0.01172786,85267.0,85261.0,0.01172869]
[1764611558199,0.011728,85266.0,85260.0,0.24630306]
[1764611558425,0.01172882,85260.0,85252.0,0.00598388]
[1764611558635,0.01172869,85261.0,85254.0,0.01172965]
[1764611559066,0.01172882,85260.0,85254.0,0.01172965]
[1764611559277,0.24630673,85260.0,85253.0,0.01172979]
[1764611559522,0.24630673,85260.0,85254.0,0.01172965]
[1764611559716,0.24630673,85260.0,85254.0,0.24632259]
[1764611559877,0.01172896,85259.0,85254.0,0.24632259]
[1764611560079,0.24630673,85260.0,85254.0,0.24632259]
[1764611560507,0.01172869,85261.0,85255.0,0.24631967]
[1764611560705,0.01172869,85261.0,85255.0,0.24631855]
[1764611560921,0.01172869,85261.0,85255.0,0.01172951]
[1764611561142,0.24630312,85261.0,85256.0,0.01172937]
[1764611561309,0.01172869,85261.0,85256.0,0.01172937]
[1764611561512,0.24629645,85264.0,85256.0,0.01172937]
[1764611561513,0.2345688,85263.0,85257.0,0.01172924]
[1764611561689,0.33472827,85264.0,85258.0,0.0117291]
[1764611562139,0.323,85264.0,85260.0,0.01172882]
[1764611562340,0.01172704,85273.0,85265.0,0.23456276]
[1764611562602,0.01172759,85269.0,85263.0,0.01172841]
[1764611562786,0.01172717,85272.0,85264.0,0.01172827]
[1764611562952,0.01172745,85270.0,85264.0,0.01172827]
[1764611563164,0.01172759,85269.0,85264.0,0.01172827]
[1764611563370,0.01172786,85267.0,85261.0,0.01172869]
[1764611563569,0.01172786,85267.0,85261.0,0.24630172]
[1764611563796,0.01172772,85268.0,85263.0,0.01172841]
[1764611563954,0.01172772,85268.0,85261.0,0.24630172]
[1764611564155,0.01172882,85260.0,85252.0,0.01172993]
[1764611564356,0.01172869,85261.0,85255.0,0.24631974]
[1764611564579,0.23458759,85256.0,85246.0,0.23461353]
[1764611564827,0.01172924,85257.0,85252.0,0.01172993]
[1764611564990,0.0117291,85258.0,85252.0,0.01172993]
[1764611565171,0.0117291,85258.0,85251.0,0.24632929]
[1764611565172,0.01172924,85257.0,85251.0,0.24632929]
[1764611565516,0.0117291,85258.0,85253.0,0.01172979]
[1764611565857,0.24632563,85253.0,85252.0,0.001]
[1764611566061,0.0117291,85258.0,85252.0,0.001]
[1764611566062,0.23458484,85257.0,85252.0,0.001]
[1764611566262,0.24632073,85255.0,85252.0,0.00158478]
[1764611566480,0.01172951,85255.0,85252.0,0.001]
[1764611566689,0.24632047,85255.0,85250.0,0.0117302]
[1764611566905,0.01172951,85255.0,85250.0,0.24633361]
[1764611567120,0.24632036,85255.0,85249.0,0.24633682]
[1764611568909,0.2346096,85248.0,85245.0,0.00011607]
[1764611569083,0.24633942,85249.0,85245.0,0.00011607]
[1764611569290,0.24634238,85248.0,85245.0,0.00011607]
[1764611569510,0.08441352,85248.0,85245.0,0.05243292]
[1764611569849,0.24633499,85250.0,85245.0,0.05243292]
[1764611570052,0.23461511,85246.0,85245.0,0.00011607]
[1764611570956,0.55761511,85246.0,85245.0,0.00011607]
[1764611571531,0.57621511,85246.0,85245.0,0.00111607]
[1764611571944,0.57621511,85246.0,85245.0,0.00011607]
[1764611572359,0.57621511,85246.0,85245.0,0.00092834]
[1764611572581,0.60151943,85246.0,85245.0,0.00092834]
[1764611575969,2.60151943,85246.0,85245.0,0.00092834]
[1764611576517,2.60351943,85246.0,85245.0,0.00092834]
[1764611576717,2.60151943,85246.0,85245.0,0.00092834]
[1764611577166,2.60251943,85246.0,85245.0,0.00092834]
[1764611577530,2.36790432,85246.0,85245.0,0.00092834]
[1764611577750,2.36890432,85246.0,85245.0,0.00092834]
[1764611577959,2.60151943,85246.0,85245.0,0.00092834]
[1764611578162,2.60251943,85246.0,85245.0,0.00092834]
[1764611578369,2.60351943,85246.0,85245.0,0.00092834]
[1764611578776,2.60251943,85246.0,85245.0,0.00092834]
[1764611579176,2.60351943,85246.0,85245.0,0.00092834]
[1764611579413,2.84801943,85246.0,85245.0,0.00092834]
[1764611579558,2.84701943,85246.0,85245.0,0.00092834]
[1764611579957,2.84801943,85246.0,85245.0,0.00092834]
[1764611580193,2.84601943,85246.0,85245.0,0.00092834]
[1764611580394,2.84601943,85246.0,85245.0,1e-08]
[1764611580554,2.84801943,85246.0,85245.0,1e-08]
[1764611580758,2.84701943,85246.0,85245.0,1e-08]
[1764611581014,2.86442474,85246.0,85245.0,1e-08]
[1764611581195,2.94277734,85246.0,85245.0,1e-08]
[1764611581517,0.01173764,85196.0,85190.0,0.23476904]
[1764611581659,0.01173722,85199.0,85191.0,0.01173832]
[1764611581660,0.01173736,85198.0,85191.0,0.01173832]
[1764611581877,0.01173764,85196.0,85191.0,0.01173832]
[1764611582073,0.24648821,85197.0,85192.0,0.01173819]
[1764611582274,0.24648821,85197.0,85192.0,0.24650166]
[1764611582512,0.01173695,85201.0,85193.0,0.24649912]
[1764611582743,0.23473076,85204.0,85196.0,0.01173764]
[1764611582887,0.002,85198.0,85195.0,0.24649333]
[1764611583085,0.002,85198.0,85194.0,0.29818288]
[1764611583308,0.2464762,85201.0,85196.0,0.01173764]
[1764611583510,1.01711592,85220.0,85195.0,0.01173777]
[1764611583511,0.002,85197.0,85195.0,0.01173777]
[1764611583710,0.23474194,85200.0,85195.0,0.01173777]
[1764611583871,0.23474194,85200.0,85196.0,0.07808313]
[1764611584075,0.002,85198.0,85196.0,0.07808313]
[1764611584278,0.24647056,85203.0,85198.0,0.01173736]
[1764611584530,0.04219226,85249.0,85212.0,0.01173543]
[1764611584531,0.323,85217.0,85212.0,0.01173543]
[1764611584724,0.323,85217.0,85216.0,0.2346977]
[1764611585117,0.323,85217.0,85212.0,0.01173543]
[1764611585318,0.323,85217.0,85215.0,0.23469993]
[1764611585521,0.323,85217.0,85214.0,0.01173516]
[1764611585522,0.0117335,85226.0,85217.0,0.01173474]
[1764611585860,0.24641215,85224.0,85217.0,0.00038728]
[1764611586056,0.2346922,85218.0,85217.0,0.00038728]
[1764611586496,0.323,85218.0,85217.0,0.00038728]
[1764611586794,0.002,85226.0,85221.0,0.01173419]
[1764611586974,0.01173323,85228.0,85221.0,0.23468352]
[1764611587175,0.2463952,85229.0,85220.0,0.24641904]
[1764611587380,0.323,85227.0,85223.0,0.00973392]
[1764611587697,0.323,85227.0,85224.0,0.08545961]
[1764611587904,0.323,85227.0,85224.0,0.07372583]
[1764611588108,0.23467017,85226.0,85221.0,0.01173419]
[1764611588305,0.33473337,85227.0,85222.0,0.01173405]
[1764611588487,0.01173282,85231.0,85222.0,0.01173405]
[1764611588488,0.01173254,85233.0,85228.0,0.24639756]
[1764611588685,0.323,85235.0,85231.0,0.01173282]
[1764611588884,0.323,85235.0,85231.0,0.00973282]
[1764611589084,0.323,85235.0,85233.0,0.23465079]
[1764611589455,0.323,85235.0,85233.0,0.23265079]
[1764611589661,0.01173116,85243.0,85237.0,0.01173199]
[1764611589901,0.01173089,85245.0,85240.0,0.01173158]
[1764611590074,0.01173116,85243.0,85233.0,0.01173254]
[1764611590381,0.01173199,85237.0,85233.0,0.01173254]
[1764611590584,0.23464263,85236.0,85234.0,0.026986]
[1764611590828,0.23664552,85235.0,85233.0,0.001]
[1764611591137,0.002,85235.0,85233.0,0.001]
[1764611591661,0.23464814,85234.0,85233.0,0.001]
[1764611591869,0.01173213,85236.0,85231.0,0.24638915]
[1764611592096,0.234646,85235.0,85233.0,0.009]
[1764611592294,0.234646,85235.0,85231.0,0.01173282]
[1764611592295,0.24637826,85235.0,85231.0,0.01173282]
[1764611592629,0.24637826,85235.0,85231.0,0.27454864]
[1764611592835,0.002,85234.0,85233.0,0.009]
[1764611593010,0.24637826,85235.0,85231.0,0.27454864]
[1764611593209,0.01173309,85229.0,85224.0,0.01173378]
[1764611593414,0.01173295,85230.0,85225.0,0.24640434]
[1764611593616,0.01173323,85228.0,85223.0,0.24640999]
[1764611593948,0.01173337,85227.0,85223.0,0.24640999]
[1764611594260,0.5576922,85218.0,85207.0,0.23471991]
[1764611594461,0.5576922,85218.0,85199.0,0.01173722]
[1764611594755,0.5576922,85218.0,85204.0,0.01173653]
[1764611595257,0.5576922,85218.0,85207.0,0.23472199]
[1764611595433,0.5576922,85218.0,85209.0,0.01173584]
[1764611595641,0.5596922,85218.0,85217.0,0.01138728]
[1764611595840,0.5576922,85218.0,85217.0,0.00038728]
[1764611596025,0.5576922,85218.0,85217.0,0.00138728]
[1764611596436,0.5596922,85218.0,85217.0,0.01238728]
[1764611596678,0.5596922,85218.0,85217.0,0.00038728]
[1764611596679,0.5576922,85218.0,85217.0,0.00038728]
[1764611596898,0.5596922,85218.0,85217.0,0.01138728]
[1764611598119,0.58496071,85218.0,85217.0,0.01138728]
[1764611598249,0.58296071,85218.0,85217.0,0.00038728]
[1764611598590,0.58496071,85218.0,85217.0,0.01129744]
[1764611598788,0.58296071,85218.0,85217.0,0.00129744]
[1764611599202,0.58496071,85218.0,85217.0,0.01129744]
[1764611599816,2.58496071,85218.0,85217.0,0.01129744]
[1764611601004,2.58596071,85218.0,85217.0,0.01129744]
[1764611601208,2.58396071,85218.0,85217.0,0.00129744]
[1764611601582,2.58496071,85218.0,85217.0,0.01029744]
[1764611601991,2.58396071,85218.0,85217.0,0.00129744]
[1764611602213,2.58396071,85218.0,85217.0,0.01029744]
[1764611602413,0.58396071,85218.0,85217.0,0.01029744]
[1764611602595,2.58396071,85218.0,85217.0,0.00129744]
[1764611603142,2.58296071,85218.0,85217.0,0.00129744]
[1764611603360,2.58496071,85218.0,85217.0,0.01029744]
[1764611603574,0.01173653,85204.0,85197.0,0.0117375]
[1764611603698,0.00038717,85204.0,85200.0,0.23474178]
[1764611603898,0.323,85203.0,85198.0,0.24648406]
[1764611604097,0.323,85203.0,85199.0,0.24648116]
[1764611604324,0.00038717,85204.0,85202.0,0.23522403]
[1764611604537,0.00038717,85204.0,85203.0,0.30866717]
[1764611605426,0.00238717,85204.0,85203.0,0.30866717]
[1764611605613,0.00038717,85204.0,85203.0,0.2972565]
[1764611606012,0.00238717,85204.0,85203.0,0.3082565]
[1764611606216,0.00238717,85204.0,85203.0,0.42448246]
[1764611606412,0.00238717,85204.0,85203.0,0.43589313]
[1764611609809,0.00238717,85204.0,85203.0,0.43634837]
[1764611613578,0.00238717,85204.0,85203.0,0.45494837]
[1764611614188,0.00238717,85204.0,85203.0,0.4435377]
[1764611614395,0.00238717,85204.0,85203.0,0.45494837]
[1764611615264,0.00238717,85204.0,85203.0,0.44394837]
[1764611615461,0.00238717,85204.0,85203.0,0.44294837]
[1764611615462,0.00038717,85204.0,85203.0,0.44294837]
[1764611615675,0.00238717,85204.0,85203.0,0.45494837]
[1764611616047,0.00238717,85204.0,85203.0,0.45394837]
[1764611616571,1e-08,85204.0,85203.0,0.77694837]
[1764611616785,0.01172993,85252.0,85247.0,0.01173061]
[1764611616980,0.24632998,85252.0,85247.0,0.00011623]
[1764611617196,0.323,85251.0,85247.0,0.24645912]
[1764611617399,0.33473006,85251.0,85247.0,0.01184684]
[1764611617598,0.323,85251.0,85249.0,0.23460658]
[1764611617916,0.00189065,85260.0,85258.0,0.23458191]
[1764611618275,0.00189065,85260.0,85258.0,0.23358191]
[1764611619172,0.00189065,85260.0,85259.0,0.23457934]
[1764611619345,0.00289065,85260.0,85259.0,0.23457934]
[1764611620378,0.00289065,85260.0,85259.0,0.23957934]
[1764611620603,0.00289065,85260.0,85259.0,0.27882015]
[1764611620807,0.23646723,85260.0,85259.0,0.005]
[1764611621005,0.55946723,85260.0,85259.0,0.005]
[1764611622792,0.32489065,85260.0,85259.0,0.23457934]
[1764611623149,0.00189065,85260.0,85259.0,0.23757934]
[1764611623346,0.00189065,85260.0,85259.0,0.23457934]
[1764611623774,0.00189065,85260.0,85259.0,0.23757934]
[1764611623982,0.00189065,85260.0,85259.0,0.23457934]
[1764611624140,0.00189065,85260.0,85259.0,0.23557934]
[1764611624506,0.00289065,85260.0,85259.0,0.24257934]
[1764611626457,0.00289065,85260.0,85259.0,0.2648952]
[1764611626660,0.00289065,85260.0,85259.0,0.008]
[1764611626944,0.00289065,85260.0,85259.0,0.24157934]
[1764611627128,0.00189065,85260.0,85259.0,0.001]
[1764611627364,0.23646723,85260.0,85259.0,0.006]
[1764611627701,0.23646723,85260.0,85259.0,0.001]
[1764611628045,0.23458046,85259.0,85256.0,0.01172937]
[1764611628187,0.23458046,85259.0,85256.0,0.2463168]
[1764611628390,0.24819605,85260.0,85257.0,0.23458225]
[1764611628643,0.24819605,85260.0,85258.0,0.23458173]
[1764611629047,0.24819605,85260.0,85259.0,0.002]
[1764611629250,0.24819605,85260.0,85258.0,0.23458173]
[1764611630096,0.24819605,85260.0,85256.0,0.001]
[1764611630097,0.2463083,85259.0,85256.0,0.001]
[1764611630303,0.23458244,85258.0,85256.0,0.001]
[1764611630471,0.0117302,85250.0,85247.0,0.00011623]
[1764611630671,0.23460762,85249.0,85247.0,0.00011623]
[1764611630871,0.2346096,85248.0,85247.0,0.00011623]
[1764611631041,0.24633657,85250.0,85247.0,0.00011623]
[1764611631233,0.24633366,85251.0,85247.0,0.00011623]
[1764611631461,0.24633366,85251.0,85248.0,0.23460795]
[1764611632087,0.24633366,85251.0,85247.0,0.00111623]
[1764611632285,0.23460766,85249.0,85247.0,0.00111623]
[1764611632464,0.2346096,85248.0,85247.0,0.00111623]
[1764611632886,0.23460766,85249.0,85247.0,0.00111623]
[1764611633506,0.23460766,85249.0,85247.0,0.00011623]
[1764611633894,0.23460766,85249.0,85247.0,0.23872827]
[1764611634090,0.23460766,85249.0,85247.0,0.00411623]
[1764611634488,0.23460747,85249.0,85247.0,0.00311623]
[1764611634681,0.23460747,85249.0,85247.0,0.00411623]
[1764611635357,0.24633453,85250.0,85247.0,0.23872805]
[1764611635758,0.2346096,85248.0,85247.0,0.00411623]
[1764611636160,0.2346096,85248.0,85247.0,0.00111623]
[1764611636322,0.5576096,85248.0,85247.0,0.00111623]
[1764611636721,0.323,85248.0,85247.0,0.00111623]
[1764611637160,0.5576096,85248.0,85247.0,0.00111623]
[1764611637409,0.5576096,85248.0,85247.0,0.00011623]
[1764611637776,0.323,85248.0,85247.0,0.23472859]
[1764611638385,0.323,85248.0,85247.0,0.00011623]
[1764611638907,0.5576096,85248.0,85247.0,0.00011623]
[1764611641818,2.61429153,85248.0,85247.0,0.00011623]
[1764611641992,2.61797938,85248.0,85247.0,0.00011623]
[1764611642197,2.63657938,85248.0,85247.0,0.00011623]
[1764611642401,0.23471423,85210.0,85209.0,0.00026012]
[1764611642596,0.23471423,85210.0,85209.0,0.00037654]
[1764611643780,0.23471423,85210.0,85209.0,0.00137654]
[1764611644104,0.55771423,85210.0,85209.0,0.00137654]
[1764611644844,0.323,85210.0,85209.0,0.00137654]
[1764611645050,0.55771423,85210.0,85209.0,0.00137654]
[1764611646239,0.55771423,85210.0,85209.0,0.00037654]
[1764611646639,0.55771423,85210.0,85209.0,0.00137654]
[1764611647390,0.323,85210.0,85209.0,0.00037654]
[1764611647594,0.55771423,85210.0,85209.0,0.00037654]
[1764611647807,0.323,85210.0,85209.0,0.00037654]
[1764611648220,0.55771423,85210.0,85209.0,0.00037654]
[1764611649156,0.55771423,85210.0,85209.0,0.00137654]
[1764611649361,0.323,85210.0,85209.0,0.00037654]
[1764611649787,0.323,85210.0,85209.0,0.00137654]
[1764611649988,0.323,85210.0,85209.0,0.00037654]
[1764611650211,0.55771423,85210.0,85209.0,0.00037654]
[1764611650412,0.323,85210.0,85209.0,0.23609352]
[1764611650625,0.323,85210.0,85209.0,0.00137654]
[1764611651342,0.323,85210.0,85209.0,0.23609352]
[1764611651558,0.323,85210.0,85209.0,0.23509352]
[1764611651934,0.01173378,85224.0,85215.0,0.2346983]
[1764611652139,0.55768996,85219.0,85215.0,0.01173502]
[1764611652338,0.323,85219.0,85217.0,0.23469476]
[1764611652612,0.323,85223.0,85221.0,0.23468393]
[1764611652766,0.56941336,85223.0,85218.0,0.01173461]
[1764611652969,0.323,85220.0,85217.0,0.24642929]
[1764611653187,0.323,85221.0,85219.0,0.01173447]
[1764611653388,0.33473419,85221.0,85218.0,0.2346922]
[1764611653551,0.33473419,85221.0,85217.0,0.01173474]
[1764611654123,0.323,85221.0,85220.0,0.23468669]
[1764611654325,0.01173185,85238.0,85234.0,0.0117324]
[1764611654465,0.01173171,85239.0,85234.0,0.2463752]
[1764611654669,0.01173158,85240.0,85236.0,0.01173213]
[1764611654670,0.56936341,85240.0,85236.0,0.01173213]
[1764611654997,0.01173075,85246.0,85241.0,0.23462649]
[1764611655337,0.55761812,85245.0,85242.0,0.23462606]
[1764611655559,0.55761812,85245.0,85238.0,0.01173185]
[1764611655560,0.23646836,85260.0,85254.0,0.23459282]
[1764611655772,0.00189065,85260.0,85257.0,0.23458468]
[1764611655967,0.23459034,85255.0,85254.0,0.00011642]
[1764611656106,0.55759034,85255.0,85254.0,0.00011642]
[1764611656524,0.23459034,85255.0,85254.0,0.00011642]
[1764611656730,0.55759034,85255.0,85254.0,0.00011642]
[1764611657180,0.323,85255.0,85254.0,0.00011642]
[1764611657399,0.323,85255.0,85254.0,0.28398795]
[1764611657614,0.323,85255.0,85254.0,0.23470951]
[1764611657952,0.00189065,85260.0,85259.0,0.23457934]
[1764611659167,0.00189065,85260.0,85259.0,0.23557934]
[1764611659531,0.00189065,85260.0,85259.0,0.23457934]
[1764611659815,0.00189065,85260.0,85259.0,0.23557934]
[1764611660284,0.00189065,85260.0,85259.0,0.001]
[1764611660616,0.00189065,85260.0,85259.0,0.002]
[1764611661266,0.00189065,85260.0,85257.0,0.24631395]
[1764611661805,0.00189065,85260.0,85259.0,0.001]
[1764611661978,0.00189065,85260.0,85257.0,0.24631395]
[1764611661979,0.23646849,85260.0,85257.0,0.01172924]
[1764611662140,0.23458049,85259.0,85256.0,0.23458674]
[1764611662336,0.23458939,85256.0,85254.0,0.00011642]
[1764611662942,0.23459034,85255.0,85254.0,0.00011642]
[1764611663159,0.23458939,85256.0,85254.0,0.00011642]
[1764611663327,0.23459034,85255.0,85254.0,0.00011642]
[1764611665096,0.0117291,85258.0,85254.0,0.00011642]
[1764611665097,0.00189065,85260.0,85254.0,0.00011642]
[1764611665250,0.01361947,85260.0,85256.0,0.01172937]
[1764611665590,0.23457961,85259.0,85256.0,0.24631533]
[1764611665792,0.23458759,85256.0,85254.0,0.00011642]
[1764611666194,0.01172896,85259.0,85254.0,0.00011642]
[1764611666407,0.23458778,85256.0,85254.0,0.00011642]
[1764611666987,0.23459034,85255.0,85254.0,0.00011642]
[1764611667191,0.35199775,85255.0,85254.0,0.00011642]
[1764611667842,0.23459034,85255.0,85254.0,0.00011642]
[1764611670932,0.01172896,85259.0,85254.0,0.00011642]
[1764611671132,0.01172924,85257.0,85254.0,0.00011642]
[1764611671351,0.23459034,85255.0,85254.0,0.00011642]
[1764611674190,0.00189065,85260.0,85254.0,0.01184607]
[1764611674428,0.0117291,85258.0,85255.0,0.24631745]
[1764611674829,0.323,85259.0,85256.0,0.23458638]
[1764611675281,0.55757981,85259.0,85256.0,0.23458638]
[1764611675646,0.323,85259.0,85257.0,0.23458311]
[1764611675844,0.24819674,85260.0,85257.0,0.23458311]
[1764611675845,0.00189065,85260.0,85259.0,0.23457934]
[1764611676677,0.00189065,85260.0,85259.0,0.24599001]
[1764611677083,0.00189065,85260.0,85259.0,0.23457934]
[1764611677443,0.00189065,85260.0,85259.0,0.23557934]
[1764611677847,0.00189065,85260.0,85259.0,0.23457934]
[1764611678199,0.323,85271.0,85259.0,0.23457934]
[1764611678200,0.23454666,85271.0,85266.0,0.011728]
[1764611678443,0.01172717,85272.0,85266.0,0.011728]
[1764611678444,0.24627652,85270.0,85266.0,0.011728]
[1764611678644,0.24627292,85272.0,85269.0,0.23455017]
[1764611679081,0.24627292,85272.0,85267.0,0.01172786]
[1764611679082,0.23455132,85270.0,85267.0,0.24628508]
[1764611679283,0.24627454,85271.0,85268.0,0.23455456]
[1764611679401,0.24627454,85271.0,85269.0,0.2345512]
[1764611679605,0.03150817,85294.0,85268.0,0.24628228]
[1764611679606,0.26485653,85277.0,85273.0,0.2345387]
[1764611679806,0.24625653,85277.0,85273.0,0.2345387]
[1764611680006,0.23452752,85278.0,85275.0,0.23453511]
[1764611680208,0.23453132,85277.0,85274.0,0.0117269]
[1764611680591,0.01172662,85276.0,85275.0,0.02584938]
[1764611680772,0.01172649,85277.0,85275.0,0.02584938]
[1764611681352,0.01172649,85277.0,85274.0,0.24626475]
[1764611681551,0.24625292,85279.0,85276.0,0.24625691]
[1764611681714,0.23453178,85277.0,85274.0,0.0117269]
[1764611681914,0.24626208,85275.0,85272.0,0.23454327]
[1764611682120,0.24626135,85276.0,85272.0,0.24627044]
[1764611682319,0.24626458,85275.0,85271.0,0.24627319]
[1764611682770,0.01172635,85278.0,85272.0,0.24626799]
[1764611682970,0.01172635,85278.0,85274.0,0.0117269]
[1764611683189,0.01172635,85278.0,85273.0,0.01172704]
[1764611683397,0.2345356,85275.0,85273.0,0.27323984]
[1764611683604,0.2345356,85275.0,85273.0,0.24626666]
[1764611683866,0.01172676,85275.0,85273.0,0.23454006]
[1764611684065,0.24625951,85276.0,85273.0,0.2462671]
[1764611684304,0.2462586,85277.0,85274.0,0.24626497]
[1764611684682,0.01172607,85280.0,85276.0,0.23453073]
[1764611684885,0.02531188,85283.0,85282.0,0.23451607]
[1764611685128,0.01172401,85295.0,85290.0,0.0117247]
[1764611685279,0.323,85294.0,85290.0,0.24621619]
[1764611685482,0.56920808,85294.0,85291.0,0.07269379]
[1764611685884,0.323,85294.0,85291.0,0.07269379]
[1764611686082,0.32338772,85294.0,85291.0,0.08441835]
[1764611686264,0.323,85292.0,85291.0,0.08441835]
[1764611686479,0.323,85292.0,85291.0,0.07269379]
[1764611686678,0.323,85292.0,85291.0,0.23449132]
[1764611686878,0.323,85292.0,85290.0,0.0117247]
[1764611687293,0.323,85293.0,85290.0,0.0117247]
[1764611687491,0.55748724,85293.0,85291.0,0.001]
[1764611687706,0.24623655,85284.0,85280.0,0.24624632]
[1764611687913,0.23451427,85283.0,85280.0,0.01172607]
[1764611688115,0.01172552,85284.0,85281.0,0.23451784]
[1764611688615,0.24623321,85285.0,85282.0,0.0117258]
[1764611688813,0.01172539,85285.0,85282.0,0.0117258]
[1764611689035,0.23451058,85284.0,85282.0,0.0117258]
[1764611689597,0.24623325,85285.0,85282.0,0.24624153]
[1764611689875,0.01172511,85287.0,85283.0,0.23451285]
[1764611690396,0.0007794,85284.0,85283.0,0.26875111]
[1764611690810,0.01172456,85291.0,85286.0,0.23450438]
[1764611691027,0.24621036,85293.0,85288.0,0.24622294]
[1764611691844,0.24621544,85292.0,85289.0,0.24622154]
[1764611692020,0.01172442,85292.0,85289.0,0.24622154]
[1764611692197,0.24621345,85292.0,85289.0,0.05384097]
[1764611692400,0.00038772,85294.0,85289.0,0.05384097]
[1764611692624,0.00038772,85294.0,85291.0,0.01172456]
[1764611693001,0.00038772,85294.0,85293.0,0.23448583]
[1764611693413,0.2348708,85294.0,85291.0,0.01172456]
[1764611693619,0.01211187,85294.0,85291.0,0.23449048]
[1764611693961,0.00038772,85294.0,85292.0,0.0269665]
[1764611694172,0.00038772,85294.0,85292.0,0.26145427]
[1764611694509,0.00038772,85294.0,85293.0,0.23448583]
[1764611695376,0.00038772,85294.0,85293.0,0.2458965]
[1764611695513,0.00038772,85294.0,85293.0,0.23448583]
[1764611695713,0.00038772,85294.0,85293.0,0.3356692]
[1764611696872,0.00038772,85294.0,85293.0,0.3366692]
[1764611697234,0.00071238,85294.0,85293.0,0.3366692]